Cogmind - Beta 10.1 @@@ ROGUE MODE // 2020.09.30 @ 00:38:26 Player: Calanor Result: Destroyed by G-34 Mercenary with Small Laser Performance ------------- Evolutions (0) 0 Regions Visited (1) 200 Robots Destroyed (15) 75 Value Destroyed (225) 225 Prototype IDs (0) 0 Alien Tech Used (0) 0 Bonus (0) 0 TOTAL SCORE: 500 Bonus ------- None Cogmind --------- Core Integrity 0/250 Matter 296/300 Energy 95/100 System Corruption 0% Temperature Cool (12) Movement Walking (120) Location -10/Materials Parts ------- > --- POWER (1) -------- (None) > --- PROPULSION (2) --- Aluminum Leg Aluminum Leg > --- UTILITY (2) ------ Large Storage Unit Sensor Array > --- WEAPON (2) ------- (None) > --- INVENTORY (10) --- Light Ion Engine Light Treads Aluminum Leg Large Storage Unit Signal Interpreter ECM Suite Hacking Suite Peak State ------------ > --- POWER ------------ Ion Engine > --- PROPULSION ------- Aluminum Leg Aluminum Leg > --- UTILITY ---------- Large Storage Unit Sensor Array > --- WEAPON ----------- Light Assault Rifle Light Assault Rifle > --- INVENTORY -------- Light Ion Engine Light Treads Aluminum Leg Aluminum Leg Aluminum Leg Small Storage Unit Signal Interpreter ECM Suite Hacking Suite [Rating: 8] Favorites ----------- Power Ion Engine Engine Ion Engine Propulsion Light Treads Treads Light Treads Leg Aluminum Leg Utility Sensor Array Device Sensor Array Storage Large Storage Unit Weapon Light Assault Rifle Energy Gun Small Laser Energy Cannon Beam Cannon Ballistic Gun Light Assault Rifle Build | -11 -10 ------- Run | Scr Mat Slots Evolved . | . . Power . | . . Propulsion . | . . Utility . | . . Weapon . | . . Parts Attached 23 | 7 16 Power 2 | 1 1 Engine 2 | 1 1 Core . | . . Reactor . | . . Propulsion 7 | 2 5 Treads 2 | 2 . Leg 5 | . 5 Wheel . | . . Hover . | . . Flight . | . . Utility 5 | 1 4 Device 3 | . 3 Storage 2 | 1 1 Processor . | . . Hackware . | . . Protection . | . . Artifact . | . . Weapon 9 | 3 6 Energy Gun 3 | 3 . Energy Cannon 1 | . 1 Ballistic Gun 5 | . 5 Ballistic Cannon . | . . Launcher . | . . Special Weapon . | . . Impact Weapon . | . . Slashing Weapon . | . . Piercing Weapon . | . . Special Melee Weapon . | . . Unidentified Prototypes . | . . Parts Lost 7 | . 7 Power 1 | . 1 Propulsion 2 | . 2 Utility . | . . Weapon 4 | . 4 Highest Loss Streak 4 | . 4 Average Slot Usage (%) 95 | . 95 Engine 12 | . 12 Treads 16 | . 16 Leg 11 | . 11 Device 13 | . 13 Storage 14 | . 14 Energy Gun 13 | . 13 Energy Cannon 1 | . 1 Ballistic Gun 11 | . 11 Naked Turns . | . . Heaviest Build 26 | 12 26 Greatest Support 40 | 40 40 Greatest Overweight (x) 5 | 1 5 Average Overweight (x) . | . . Largest Inventory Capacity 10 | 6 10 Average Capacity 7 | 4 8 Most Carried 9 | 4 9 Average Carried 6 | 2 7 Final Capacity 10 | 6 10 Final Carried 7 | 4 7 Class Distribution -------------------- 100% | Mutant Dominant Class ---------------- Mutant | -10/Materials Resources | -11 -10 ----------- Run | Scr Mat Matter Collected 419 | 196 223 Remotely . | . . Salvage Created 343 | . 343 Parts 34 | . 34 Haulers Intercepted . | . . Recyclers Shooed . | . . Parts Field Recycled . | . . Retrieved Matter . | . . Parts Self-Destructed . | . . Prevented . | . . Kills | -11 -10 ------- Run | Scr Mat Combat Hostiles Destroyed 12 | . 12 Melee 1 | . 1 Guns 8 | . 8 Cannons 3 | . 3 Classes Destroyed 5 | . 5 Worker 1 | . 1 Operator 1 | . 1 Watcher 1 | . 1 Swarmer 9 | . 9 Grunt 3 | . 3 Best Kill Streak 4 | . 4 Combat Bots Only 4 | . 4 Max Kills in Single Turn 2 | . 2 Gunslinging . | . . Exploded . | . . Melee 1 | . 1 Uniques/NPCs Destroyed . | . . Combat | -11 -10 -------- Run | Scr Mat Damage Taken 1098 | . 1098 Core 251 | . 251 Absorbed by Shields . | . . Core Remaining (%) 100 | 100 . Volleys Fired 61 | . 61 Largest 2 | . 2 Hottest 100 | . 100 Shots Fired 105 | . 105 Gun 87 | . 87 Cannon 18 | . 18 Launcher . | . . Special . | . . Kinetic 45 | . 45 Thermal 60 | . 60 Explosive . | . . Electromagnetic . | . . Robot Hit Streak 7 | . 7 Robot Miss Streak 7 | . 7 Penetration Max . | . . Secondary Targets 1 | . 1 Max Gunslinging Chain 1 | . 1 Shots Hit Robots 57 | . 57 Core Hits 28 | . 28 Critical Hits . | . . Critical Kills . | . . Critical Parts Destroyed . | . . Melee Attacks . | . . Impact . | . . Slashing . | . . Piercing . | . . Sneak Attacks . | . . Combat Hostiles . | . . Follow-up Attacks . | . . Damage Inflicted 596 | . 596 Guns 449 | . 449 Cannons 104 | . 104 Explosions . | . . Melee . | . . Ramming 43 | . 43 Kinetic 181 | . 181 Thermal 372 | . 372 Explosive . | . . Electromagnetic . | . . Impact . | . . Slashing . | . . Piercing . | . . Highest Corruption . | . . Average Corruption . | . . Corruption Purged . | . . Overload Shots . | . . Overflow Damage . | . . Projectiles . | . . Explosions . | . . Melee . | . . Knockbacks 1 | . 1 Impact 1 | . 1 Kinetic . | . . Secondary . | . . Self-Inflicted Damage 10 | . 10 Shots . | . . Rammed 8 | . 8 Targets Rammed 16 | . 16 Kicked 8 | . 8 Crushed . | . . Highest Temperature 534 | . 534 Average Temperature 172 | . 172 Received Heat Transfer 204 | . 204 Effects 7 | . 7 Shutdowns 2 | . 2 Damage (minor) 1 | . 1 Damage (major) 4 | . 4 Siege Activations . | . . Robots Corrupted . | . . Combat Hostiles . | . . Parts Fried . | . . Impact Corruptions . | . . Robots Melted . | . . Combat Hostiles . | . . Parts Melted 2 | . 2 Heat Transferred 953 | . 953 Parts Sabotaged . | . . Parts Stolen . | . . Parts Stripped . | . . Power Chain Reactions . | . . Missiles Intercepted . | . . Alert | -11 -10 ------- Run | Scr Mat Peak Influence 122 | . 122 Initial . | . . Average 52 | . 56 Maximum Alert Level . | . . Low Security (%) 100 | 100 100 Level 1 . | . . Level 2 . | . . Level 3 . | . . Level 4 . | . . Level 5 . | . . High Security . | . . Max Security . | . . Squads Dispatched 2 | . 2 Investigation 1 | . 1 Extermination . | . . Reinforcement 1 | . 1 Assault . | . . Garrison . | . . Intercept . | . . Construction Impeded . | . . Haulers Reinforced . | . . Stealth | -11 -10 --------- Run | Scr Mat Distress Signals 1 | . 1 Communications Jammed . | . . Distress Signals . | . . Times Spotted 19 | . 19 Peak Tracking Total 4 | . 4 Tactical Retreats 1 | . 1 Traps | -11 -10 ------- Run | Scr Mat Traps Triggered 4 | . 4 Indirectly . | . . Trap Hack Attempts . | . . Triggered . | . . Disarmed . | . . Reprogrammed . | . . Reused . | . . Traps Extracted . | . . Installed . | . . Triggered . | . . Machines | -11 -10 ---------- Run | Scr Mat Machines Disabled . | . . Max in Single Turn . | . . Machines Sabotaged . | . . Garrisons Compromised . | . . Overloaded Fab Kills . | . . Fab Network Shutdowns . | . . Hacking | -11 -10 --------- Run | Scr Mat Machines Accessed 2 | . 2 Terminals . | . . Fabricators . | . . Repair Stations 1 | . 1 Recycling Units 1 | . 1 Scanalyzers . | . . Garrison Access . | . . Total Hacks 4 | . 4 Successful 3 | . 3 Failed 1 | . 1 Catastrophic . | . . Database Lockouts . | . . Manual . | . . Terminals . | . . Fabricators . | . . Repair Stations 3 | . 3 Recycling Units 1 | . 1 Scanalyzers . | . . Garrison Access . | . . Terminal Hacks . | . . Fabricator Hacks . | . . Repair Station Hacks 2 | . 2 Scan Component 1 | . 1 Repair 1 | . 1 Recycling Unit Hacks 1 | . 1 Report Inventory 1 | . 1 Scanalyzer . | . . Garrison Access Hacks . | . . Unauthorized Hacks . | . . Terminals . | . . Fabricators . | . . Repair Stations . | . . Recycling Units . | . . Scanalyzers . | . . Garrison Access . | . . Data Cores Recovered . | . . Used . | . . Hacking Detections 1 | . 1 Full Trace Events . | . . Feedback Events . | . . Feedback Blocked . | . . Robot Schematics Acquired . | . . Robots Built . | . . Matter . | . . Time . | . . Total Robot Build Rating . | . . Part Schematics Acquired . | . . Parts Built . | . . Matter . | . . Time . | . . Total Part Build Rating . | . . Parts Repaired 1 | . 1 Time 26 | . 26 Parts Recycled . | . . Recycled Matter . | . . Retrieved Matter . | . . Retrieved Components . | . . Parts Scanalyzed . | . . Part Schematics Acquired . | . . Parts Damaged . | . . Bothacking | -11 -10 ------------ Run | Scr Mat Used RIF Installer . | . . Robots Hacked . | . . Non-combat . | . . Combat . | . . Robot Hacks Applied . | . . Relay Couplers Released . | . . Robots Rewired . | . . Allies Hacked . | . . Hacks Repelled . | . . Allies | -11 -10 -------- Run | Scr Mat Total Allies . | . . Largest Group . | . . Highest-Rated Group . | . . Highest-Rated Ally . | . . Total Orders . | . . Ally Attacks . | . . Total Damage . | . . Kills . | . . Allies Corrupted . | . . Allies Melted . | . . Intel | -11 -10 ------- Run | Scr Mat Robot Analysis Total . | . . Derelict Logs Recovered . | . . Drone Launches . | . . Drone Recoveries . | . . Exploration | -11 -10 ------------- Run | Scr Mat Turns Passed 1124 | 80 1044 Spaces Moved 539 | 43 496 Core 6 | 2 4 Treads 325 | 41 284 Legs 208 | . 208 Wheels . | . . Hover . | . . Flight . | . . Fastest Speed 50 | 50 120 Average Speed 156 | 156 156 Slowest Speed 300 | 160 300 Overloaded Moves . | . . Propulsion Burnouts . | . . Robots Hopped . | . . Cave-ins Triggered . | . . Exploration Rate (%) 27 | 4 51 Regions Visited 1 Branch Regions . Pre-discovered Areas . | . . Known Exits Taken . | . . Unknown Exits Taken 1 | 1 . Scrap Searched . | . . Spaces Dug . | . . Terrain Destroyed . | . . Melee . | . . Projectile . | . . AOE . | . . Terrain Rammed . | . . Walls Destroyed . | . . Machines Disabled . | . . Actions | -11 -10 --------- Run | Scr Mat Total 715 | 53 662 Wait 59 | . 59 Move 538 | 42 496 Hop . | . . Pick Up 14 | 4 10 Fast Attach 12 | 6 6 Attach 5 | . 5 Detach . | . . Swap 6 | 1 5 Drop 4 | . 4 Fire 61 | . 61 Melee . | . . Ram . | . . Kick 16 | . 16 Crush . | . . Escape Stasis . | . . Rewire . | . . Trap . | . . Miscellaneous . | . . Route ------- -11/Scrapyard -10/Materials (discovered 3 exits: [*Mat x2] / [*Min]) History --------- Turn | Location | Event 25 | -11/Scrapyard | Discovered new exit (range 16) 81 | -11/Scrapyard | Entered Materials 314 | -10/Materials | Build established: Mutant 391 | -10/Materials | Discovered new exit (range 16) 793 | -10/Materials | Discovered new exit (range 10) 881 | -10/Materials | Repaired Sensor Array 965 | -10/Materials | Discovered new exit (range 16) 1061 | -10/Materials | Core integrity fell below 50% 1094 | -10/Materials | Core integrity fell below 20% 1124 | -10/Materials | Lost 4 parts (1p1n2w) 1125 | -10/Materials | Destroyed by G-34 Mercenary with Small Laser Last Messages --------------- 01080_ S-10 Pest destroyed. 01080_ Destabilizing: System interference. 01080_ Sensor Array temporarily disabled. 01081_ Acquired 2 matter. 01083_ Kicked G-34 Mercenary out of the way. 01085_ Slammed into G-34 Mercenary. 01086_ Kicked G-34 Mercenary out of the way. 01086_ G-34 Mercenary knocked back. 01087_ Slammed into G-34 Mercenary. 01088_ Kicked G-34 Mercenary out of the way. 01092_ Slammed into G-34 Mercenary. 01093_ Aluminum Leg destroyed. 01104_ Triggered Blade Trap. 01104_ Massive razor-sharp blades shoot up from within the floor. 01104_ Aluminum Leg severed. 01120_ Kicked G-34 Mercenary out of the way. 01121_ T-07 Excavator destroyed. 01122_ Kicked G-34 Mercenary out of the way. 01123_ Slammed into G-34 Mercenary. 01125_ R-06 Scavenger collects Aluminum Leg. Map ----- +----------------------------------------------------+ | " #?# # # # !*! #???????? | | " !#?# # + + !*! #???????? | | % ### # "Y" # # *!! #???????? | | + % # """ # ################# | | #### ## # #?##### # | | #??# ######### #?# # ! # | | #??#+######### #?# # # | | #+##??# = # #?# # """ """ # | | # ##### + ### + """ """ # | | + # # """ """ # | | ####### = # # # | | ??????########### # # | | ???????????????# """ ########### | | ???????????????# """ #?????????? | | ???????????????# """ #?????????? | | ???????????????# #?????????? | | ???????????????# #?????????? | | ???????????????######## #?????????? | | ???????????????######## #?????????? | | ???????????????# # ##########? | | ???????????????# """ #u # #? | | ?????????####### """ #u # #? | | ????????##!! !## """ gr # #? | | ????????#! !# """ # ^ # #? | | ????????#! !# # g% #? | | |??????## #######/## @# #? | | "##### ####### #### # #? | | = % % #??# # % #? | | %*% % % % #??#%# #? | | * = %%==%####??# #####+####? | | ##### %* ##+######### #???# #???? | | ##?????# #####*% ## #???# #???? | | ???????# #???#"% ## #???# #???? | | ???????# #???#T % ## ##### #???? | | ???????# #???#" + #???? | | ???????# #???# """ ##### #???? | | ???????# ????# """ #???# #???? | | ???????# ????# ! """ #???# #???? | | ???????# ????# #???# #???? | | ???????? ????###########???# #???? | | ???????? ??????????????????# #???? | | ???????? ?????############## #???? | | ???????? ?????# # # #???? | | ??????????????# """ # # #???? | | ??????????????# "R" # # #???? | | ??????????????# " " # # #???? | | ??????????????# # + #???? | | ??????????????# #** # ####???? | | ??????????????# #* # #??????? | | ??????????????# """ # # #??????? | +----------------------------------------------------+ Best States ------------- Heat Dissipation 25 Energy Generation 10 Energy Capacity 250 Matter Stores 300 Matter Capacity 300 Sight Range 16 Robot Scan Range 10 Terrain Scan Density 10 ECM Strength 1 Evasion (%) 40 Recoil Reduction 2 Item Schematics ----------------- None Robot Schematics ------------------ None Fabricated ------------ Nothing Alien Tech Used ----------------- None Achievements -------------- None Challenges ------------ None Game ------ Seed CryofiberThermalThrusters Manual? 0 Play Time 00:11:19 Cumulative 34.7 hours Start 2020.09.30 @ 00:27:16 End 2020.09.30 @ 00:38:26 Sessions 1 Manual Loads 0 Difficulty Rogue Special Mode None Game No. 33 Rogue 33 Adventurer 0 Explorer 0 Win Type - Total 0 Types 0/0/0/0/0/0/0/0/0 Lore% 21 Gallery% 19 Achievement% 17 Wizard Run 0 Options --------- ASCII 0 Keyboard 0 Movement Numpad Keybinds 0 Fullscreen 1 Font 24/Terminus Map View 76x50 Tactical HUD 1 Map Filters NONE Filters NONE Steam 1 RUN: e4eebafd-a286-41f8-bb1b-ee711a8c8627